Cogmind - Beta 15 @@@ ROGUE MODE // 2025.05.10 @ 02:55:03 Player: Florist Result: Destroyed by G-34 Mercenary with Small Laser Performance ------------- Evolutions (0) 0 Regions Visited (2) 400 Robots Destroyed (23) 115 Value Destroyed (603) 603 Prototype IDs (2) 40 Alien Tech Used (0) 0 Bonus (0) 0 TOTAL SCORE: 1158 Bonus ------- None Cogmind --------- Core Integrity 0/250 Matter 300/300 Energy 250/250 System Corruption 0% Temperature Cool (42) Movement Treading (320) Ox2 Location -10/Mines Parts ------- > --- POWER (1) -------- Ion Engine > --- PROPULSION (2) --- Light Treads Light Treads > --- UTILITY (2) ------ Huge Storage Unit > --- WEAPON (2) ------- Small Laser Small Laser > --- INVENTORY (25) --- Light Nuclear Core Light Treads Light Treads Wheel Compact Wheel Compact Wheel Flight Unit Flight Unit Flight Unit Flight Unit Flight Unit Heat Sink Improved Heat Sink Improved Heat Sink Small Laser Mining Claw Peak State ------------ > --- POWER ------------ Ion Engine > --- PROPULSION ------- Light Treads Light Treads > --- UTILITY ---------- Improved Heat Sink Huge Storage Unit > --- WEAPON ----------- Small Laser Small Laser > --- INVENTORY -------- Light Nuclear Core Light Treads Light Treads Light Treads Light Treads Wheel Compact Wheel Compact Wheel Flight Unit Flight Unit Flight Unit Flight Unit Heat Sink Improved Heat Sink Small Laser Mining Claw [Rating: 11] Favorites ----------- Power Ion Engine Engine Ion Engine Propulsion Light Treads Treads Light Treads Utility Huge Storage Unit Device Improved Heat Sink Storage Huge Storage Unit Processor Transport Network Coupler Weapon Small Laser Energy Gun Small Laser Ballistic Gun Light Assault Rifle Build | -11 -10 -10 ------- Run | Yrd Mat Min Slots Evolved . | . . . Power . | . . . Propulsion . | . . . Utility . | . . . Weapon . | . . . Parts Attached 19 | 6 13 . Power 3 | 1 2 . Engine 3 | 1 2 . Core . | . . . Reactor . | . . . Propulsion 6 | 2 4 . Treads 6 | 2 4 . Leg . | . . . Wheel . | . . . Hover . | . . . Flight . | . . . Utility 6 | 1 5 . Device 3 | . 3 . Storage 2 | 1 1 . Processor 1 | . 1 . Hackware . | . . . Protection . | . . . Artifact . | . . . Weapon 4 | 2 2 . Energy Gun 2 | . 2 . Energy Cannon . | . . . Ballistic Gun 2 | 2 . . Ballistic Cannon . | . . . Launcher . | . . . Special Weapon . | . . . Impact Weapon . | . . . Slashing Weapon . | . . . Piercing Weapon . | . . . Special Melee Weapon . | . . . Unidentified Prototypes . | . . . Parts Lost 3 | . 2 1 Power 2 | . 2 . Propulsion . | . . . Utility 1 | . . 1 Weapon . | . . . Highest Loss Streak 1 | . 1 1 To Critical Strikes . | . . . Average Backups 9 | 1 8 16 Power . | . . 1 Propulsion 7 | 1 7 10 Utility . | . . 2 Weapon . | . . 2 Tool/Special . | . . . Unused Backups 13 | . . 13 Power 1 | . . 1 Propulsion 8 | . . 8 Utility 2 | . . 2 Weapon 2 | . . 2 Tool/Special . | . . . Average Slot Usage (%) 97 | . 96 99 Engine 13 | . 13 14 Treads 27 | . 28 27 Device 12 | . 12 14 Storage 14 | . 14 14 Energy Gun 24 | . 23 28 Ballistic Gun 2 | . 2 . Peak Build Rating 11 | 6 11 11 Average Rating 9 | 4 9 10 On Entrance 5 | . 6 11 Naked Turns . | . . . Heaviest Build 88 | 12 88 88 Greatest Support 40 | 40 40 40 Greatest Overweight (x) 2 | . 2 2 Average Overweight (x) 1 | . 1 2 Largest Inventory Capacity 25 | 8 25 25 Average Capacity 22 | 6 22 25 Most Carried 18 | 4 17 18 Average Carried 9 | 1 8 16 Final Capacity 25 | 8 25 25 Final Carried 17 | 2 17 16 Class Distribution -------------------- 63% | Scavenger-Mutant 36% | Mutant Dominant Class ---------------- Scavenger-Mutant | -10/Materials Scavenger-Mutant | -10/Mines Resources | -11 -10 -10 ----------- Run | Yrd Mat Min Matter Collected 473 | 232 221 20 Remotely . | . . . Salvage Created 774 | . 573 201 Parts 44 | . 38 6 Haulers Intercepted . | . . . Recyclers Shooed . | . . . Parts Field Recycled . | . . . Retrieved Matter . | . . . Parts Self-Destructed . | . . . Prevented . | . . . Kills | -11 -10 -10 ------- Run | Yrd Mat Min Combat Hostiles Destroyed 18 | . 14 4 Guns 18 | . 14 4 Classes Destroyed 5 | . 5 . Recycler 1 | . 1 . Operator 1 | . 1 . Watcher 3 | . 3 . Swarmer 6 | . 6 . Grunt 12 | . 8 4 Best Kill Streak 3 | . 3 2 Combat Bots Only 3 | . 3 2 Max Kills in Single Turn 1 | . 1 1 Gunslinging . | . . . Exploded . | . . . Melee . | . . . Uniques/NPCs Destroyed . | . . . Combat | -11 -10 -10 -------- Run | Yrd Mat Min Hostile Shots Fired 152 | . 116 36 Missed 31 | . 23 8 Hits 121 | . 93 28 Projectile 121 | . 93 28 Critical Strikes 2 | . 1 1 Damage Taken 1279 | . 898 381 Core 250 | . 175 75 Absorbed by Shields . | . . . Regen/Repaired (Parts) 157 | . 157 . Core Remaining (%) 100 | 100 . . Volleys Fired 84 | . 63 21 Largest 2 | . 2 2 Hottest 80 | . 80 80 Shots Fired 154 | . 112 42 Gun 154 | . 112 42 Cannon . | . . . Launcher . | . . . Special . | . . . Kinetic 48 | . 48 . Thermal 106 | . 64 42 Explosive . | . . . Electromagnetic . | . . . Robot Hit Streak 16 | . 16 12 Robot Miss Streak 3 | . 3 3 Penetration Max . | . . . Secondary Targets 2 | . 2 . Max Gunslinging Chain 1 | . 1 . Shots Hit Robots 108 | . 75 33 Core Hits 41 | . 30 11 Critical Kills 1 | . 1 . Critical Parts Destroyed . | . . . Critical Strikes 1 | . 1 . Destroy 1 | . 1 . Melee Attacks . | . . . Impact . | . . . Slashing . | . . . Piercing . | . . . Sneak Attacks . | . . . Combat Hostiles . | . . . Follow-up Attacks . | . . . Damage Inflicted 1113 | . 740 373 Guns 1113 | . 740 373 Cannons . | . . . Explosions . | . . . Melee . | . . . Ramming . | . . . Kinetic 301 | . 301 . Thermal 812 | . 439 373 Explosive . | . . . Electromagnetic . | . . . Impact . | . . . Slashing . | . . . Piercing . | . . . Highest Corruption . | . . . Average Corruption . | . . . Corruption Purged . | . . . Corruption Blocked . | . . . Overload Shots . | . . . Overflow Damage . | . . . Projectiles . | . . . Explosions . | . . . Melee . | . . . Knockbacks . | . . . Impact . | . . . Kinetic . | . . . Secondary . | . . . Self-Inflicted Damage . | . . . Shots . | . . . Rammed . | . . . Targets Rammed . | . . . Kicked . | . . . Crushed . | . . . Highest Temperature 36 | . 27 36 Average Temperature 10 | . 8 10 Received Heat Transfer 474 | . 237 237 Siege Activations . | . . . Martial Activations . | . . . Shielding Activations . | . . . Robots Disrupted . | . . . Combat Hostiles . | . . . Robots Corrupted . | . . . Combat Hostiles . | . . . Parts Fried . | . . . Impact Corruptions . | . . . Robots Melted . | . . . Combat Hostiles . | . . . Parts Melted 4 | . 2 2 Heat Transferred 1850 | . 1000 850 Parts Sabotaged . | . . . Parts Stolen . | . . . Parts Stripped . | . . . Power Chain Reactions . | . . . Alert | -11 -10 -10 ------- Run | Yrd Mat Min Maximum Alert Level . | . . . Low Security (%) 100 | 100 100 100 Level 1 . | . . . Level 2 . | . . . Level 3 . | . . . Level 4 . | . . . Level 5 . | . . . High Security . | . . . Max Security . | . . . Peak Influence 72 | . 72 55 Initial . | . . . Average 13 | . 12 17 Influence Increases 542 | . 417 125 Destroy 0b10 Robot/C 360 | . 280 80 Destroy 0b10 Robot/NC 25 | . 25 . Destroy Leader 96 | . 66 30 Successful Hack 16 | . 16 . Lose Combat Pursuer 45 | . 30 15 Influence Decreases 532 | . 417 115 Time Decay 502 | . 397 105 Lost Part 30 | . 20 10 Squads Dispatched 2 | . 2 . Investigation 1 | . 1 . Extermination . | . . . Reinforcement 1 | . 1 . Assault . | . . . Garrison . | . . . Intercept . | . . . Searches Triggered . | . . . Construction Impeded . | . . . Haulers Reinforced . | . . . Active Scanning Responses . | . . . Cargo Convoy Interrupts . | . . . Stealth | -11 -10 -10 --------- Run | Yrd Mat Min Distress Signals 1 | . 1 . Communications Jammed . | . . . Distress Signals . | . . . Times Spotted 29 | . 23 6 Peak Tracking Total 3 | . 3 2 Tactical Retreats 3 | . 2 1 Traps | -11 -10 -10 ------- Run | Yrd Mat Min Traps Triggered . | . . . Indirectly . | . . . Trap Hack Attempts . | . . . Triggered . | . . . Disarmed . | . . . Reprogrammed . | . . . Reused . | . . . Traps Extracted . | . . . Installed . | . . . Triggered . | . . . Machines | -11 -10 -10 ---------- Run | Yrd Mat Min Machines Disabled . | . . . Max in Single Turn . | . . . Machines Repaired . | . . . Machines Dismantled . | . . . Machines Sabotaged . | . . . Overloaded Fab Kills . | . . . Hacking | -11 -10 -10 --------- Run | Yrd Mat Min Machines Accessed 10 | . 10 . Terminals 7 | . 7 . Fabricators . | . . . Repair Stations 1 | . 1 . Recycling Units 2 | . 2 . Scanalyzers . | . . . Garrison Access . | . . . Total Hacks 29 | . 29 . Successful 14 | . 14 . Failed 15 | . 15 . Catastrophic 2 | . 2 . Database Lockouts . | . . . Manual 16 | . 16 . Terminals 18 | . 18 . Fabricators . | . . . Repair Stations 5 | . 5 . Recycling Units 6 | . 6 . Scanalyzers . | . . . Garrison Access . | . . . Terminal Hacks 3 | . 3 . Prototype ID Bank 1 | . 1 . Terminal Index 1 | . 1 . Dispatch Records 1 | . 1 . Fabricator Hacks . | . . . Repair Station Hacks 4 | . 4 . Scan Component 2 | . 2 . Repair 2 | . 2 . Recycling Unit Hacks 1 | . 1 . Retrieve Components 1 | . 1 . Scanalyzer . | . . . Garrison Access Hacks . | . . . Unauthorized Hacks 6 | . 6 . Terminals 4 | . 4 . Botnet 4 | . 4 . Fabricators . | . . . Repair Stations . | . . . Recycling Units 2 | . 2 . Reject 1 | . 1 . Mask 1 | . 1 . Scanalyzers . | . . . Garrison Access . | . . . Data Cores Recovered . | . . . Used . | . . . Hacking Detections 9 | . 9 . Full Trace Events 4 | . 4 . Feedback Events . | . . . Feedback Blocked . | . . . Robot Schematics Acquired . | . . . Robots Built . | . . . Authchips . | . . . Time . | . . . Total Robot Build Rating . | . . . Part Schematics Acquired . | . . . Parts Built . | . . . Authchips . | . . . Time . | . . . Total Part Build Rating . | . . . Parts Repaired 2 | . 2 . Time 52 | . 52 . Parts Recycled . | . . . Recycled Matter . | . . . Retrieved Matter . | . . . Retrieved Components 7 | . 7 . Parts Scanalyzed . | . . . Part Schematics Acquired . | . . . Parts Damaged . | . . . Bothacking | -11 -10 -10 ------------ Run | Yrd Mat Min Used RIF Installer . | . . . Robots Hacked . | . . . Non-combat . | . . . Combat . | . . . Robot Hacks Applied . | . . . Relay Couplers Released . | . . . Fabnet Peak Effective % . | . . . Robots Rewired . | . . . Allies Hacked . | . . . Hacks Repelled . | . . . Allies | -11 -10 -10 -------- Run | Yrd Mat Min Total Allies . | . . . Largest Group . | . . . Highest-Rated Group . | . . . Highest-Rated Ally . | . . . Total Orders . | . . . Ally Attacks . | . . . Total Damage . | . . . Kills . | . . . Allies Corrupted . | . . . Allies Melted . | . . . Intel | -11 -10 -10 ------- Run | Yrd Mat Min Active Infowar (turns) 2 | . 2 . T.N.C. 2 | . 2 . Robot Analysis Total . | . . . Derelict Logs Recovered . | . . . Drone Launches . | . . . Drone Recoveries . | . . . Exploration | -11 -10 -10 ------------- Run | Yrd Mat Min Turns Passed 3485 | 71 3063 351 Spaces Moved 1076 | 44 953 79 Core 11 | 11 . . Treads 1065 | 33 953 79 Legs . | . . . Wheels . | . . . Hover . | . . . Flight . | . . . Fastest Speed 50 | 50 160 320 Average Speed 283 | 132 287 320 Slowest Speed 320 | 160 320 320 Overloaded Moves . | . . . Propulsion Burnouts . | . . . Robots Hopped . | . . . Potential Cave-ins . | . . . Cave-ins Triggered . | . . . Exploration Rate (%) 41 | 3 99 23 Regions Visited 2 Branch Regions 1 Pre-discovered Areas . | . . . Known Exits Taken . | . . . Unknown Exits Taken 2 | 1 1 . Scrap Searched . | . . . Spaces Dug . | . . . Terrain Destroyed . | . . . Melee . | . . . Projectile . | . . . AOE . | . . . Terrain Rammed . | . . . Walls Destroyed . | . . . Machines Disabled . | . . . Actions | -11 -10 -10 --------- Run | Yrd Mat Min Total 1367 | 57 1174 136 Wait 153 | . 122 31 Move 1074 | 43 952 79 Hop . | . . . Pick Up 25 | 8 16 1 Fast Attach 4 | . 4 . Attach 12 | 6 4 2 Detach . | . . . Swap 7 | . 7 . Drop 8 | . 6 2 Fire 84 | . 63 21 Melee . | . . . Ram . | . . . Kick . | . . . Crush . | . . . Escape Stasis . | . . . Rewire . | . . . Trap . | . . . Miscellaneous . | . . . Route ------- -11/Scrapyard -10/Materials (discovered 4 exits: [*Mat x3] / [*Min]) -10/Mines History --------- Turn | Location | Event 2 | -11/Scrapyard | Met Revision 17 45 | -11/Scrapyard | Discovered new exit (range 15) 72 | -11/Scrapyard | Entered Materials 138 | -10/Materials | Discovered new exit (range 9) 301 | -10/Materials | Build established: Mutant 828 | -10/Materials | Discovered new exit (range 12) 995 | -10/Materials | Core integrity fell below 50% 1213 | -10/Materials | Discovered new exit (range 14) 1313 | -10/Materials | Build established: Scavenger-Mutant 1381 | -10/Materials | Repaired Sml. Laser 1408 | -10/Materials | Repaired Lgt. Treads 2204 | -10/Materials | Discovered new exit (range 15) 3135 | -10/Materials | Entered Mines 3146 | -10/Mines | Core integrity fell below 20% 3156 | -10/Mines | Met a Derelict bent on vengeance 3486 | -10/Mines | Destroyed by G-34 Mercenary with Small Laser Last Messages --------------- GOAL=ESCAPE Something is scanning the area. 03143_ Critical hit (Burn: +37). 03147_ Particle Gun melted. 03147_ G-47 Trooper destroyed. 03153_ G-34 Mercenary destroyed. 03172_ Acquired Imp. Heat Sink. 03189_ Dropped Lgt. Treads. 03207_ Lgt. Nuclear Core melted. 03207_ G-47 Trooper destroyed. 03219_ Acquired 20 matter. 03228_ R-06 Scavenger collects Lgt. Treads. 03238_ K-01 Serf collects debris. 03239_ R-06 Scavenger collects Ion Engine. 03241_ K-01 Serf collects debris. 03243_ R-06 Scavenger collects Sml. Laser. 03245_ K-01 Serf collects debris. 03453_ Laser Drill disabled. 03474_ G-47 Trooper destroyed. 03482_ Imp. Heat Sink destroyed. Map ----- +----------------------------------------------------+ | ??????????????????????????????????????????????? | | ??????????????????????????????????????????????? | | ??????????????????????????????????????????????? | | ?????????????????????????????????????????#????? | | ?????????????###???????????????##???????? #???? | | ????????????? ??????????????? #??????? #???? | | ????????????? ???????????????# #??????? #???? | | ?????????????# #???????????????# #??????? #???? | | ?????????????# #???????????????# #??????# #???? | | ?????????????# ###?????????????# #??????# #???? | | ????????????## ##????????????# #??????# #???? | | ??????????### ########?????# #???#### ##??? | | ?????????## #?????# #???# #??? | | ?????????# ## #######%##### #??? | | ????????## ### ##### % #??? | | ????????# ##?####???# %[ #??? | | ????????# ##?????????################* #??? | | ????????# #?????????????????????????# #??? | | ???????## #?????????????????????????#######??? | | ???????# #??????????????????????????????????? | | ???????# #????????????????????##????????????? | | ???????# ##????????????????? ???????????? | | ???????# ##???????????????""" ???????????? | | ?# ??## ##????????##### """ #??????????? | | ## ## #????????# =g* "" #??????????? | | #??####### @## #??????????? | | ##??# #???######??????????? | | ## #???# ##### #???????????????????? | | ##??# #???# #???????????????????? | | #### #??## ##??????????????????? | | ### ## ## #### ##?????????????????? | | ??######?## #?????????????????? | | ??????????# #?????????????????? | | ??????????## ## ##?????????????????? | | ???????????###### #??????????????????? | | ????????????????## ## #??????????????????? | | ?????????????????###### ##??????????????????? | | ??????????????????????#####???????????????????? | | ??????????????????????????????????????????????? | | | | | | | | | | | | | | | | | | | | | | | +----------------------------------------------------+ Best States ------------- Heat Dissipation 39 Energy Generation 10 Energy Capacity 250 Matter Stores 300 Matter Capacity 300 Sight Range 16 Terrain Scan Density 10 Evasion (%) 50 Recoil Reduction 2 Item Schematics ----------------- None Robot Schematics ------------------ None Fabricated ------------ Nothing Repaired ---------- Sml. Laser | 28% | -10/Materials Lgt. Treads | 23% | -10/Materials Alien Tech Used ----------------- None Achievements -------------- None Challenges ------------ None Game ------ Seed RefineryTractorHumpback Manual? 0 Play Time 00:13:33 Cumulative 72.0 hours Start 2025.05.10 @ 02:39:18 End 2025.05.10 @ 02:55:03 Sessions 1 Manual Loads 0 Difficulty Rogue Special Mode None Game No. 90 Rogue 90 Adventurer 0 Explorer 0 Win Type - Total 0 Types 0/0/0/0/0/0/0/0/0/0 Lore% 37 Gallery% 43 Achievement% 40 Wizard Run 0 Options --------- Layout 1 ASCII 0 Keyboard 0 Movement Mouse Keybinds 0 Fullscreen 1 Font 32/SmallcapsGlow Map View 77x35 Zoom Use 0% Tactical HUD 1 Map Filters NONE Filters NONE Steam 1 RUN: c6af596b-4cce-4527-9cd2-55208f84b7a8